bitfinex-derivatives/quotes_SOLF0:USTF0_20250311
["timestamp","ask_amount","ask_price","bid_price","bid_amount"]
[1741652889567,49.72088016,116.5,116.42,283.22]
[1741652889768,53.99198016,116.52,116.46,8.5902]
[1741652889969,49.72088016,116.5,116.41,53.34]
[1741652890168,4.3664,116.49,116.41,53.34]
[1741652890369,49.72088016,116.47,116.4,4.3614]
[1741652890570,4.3664,116.49,116.41,49.72088016]
[1741652890770,4.2711,116.52,116.43,49.72088016]
[1741652890977,49.72088016,116.51,116.42,53.48267504]
[1741652891177,49.72088016,116.51,116.42,53.42]
[1741652891371,49.72088016,116.51,116.45,8.5909]
[1741652891569,49.72088016,116.51,116.42,53.42]
[1741652891971,4.2711,116.52,116.44,49.72088016]
[1741652892275,198.3664,116.55,116.46,49.72088016]
[1741652892474,4.3664,116.55,116.47,53.38]
[1741652893473,0.06423512,116.52,116.5,0.0635888]
[1741652893773,49.72088016,116.51,116.5,0.0635888]
[1741652893968,8.5894,116.48,116.41,8.5942]
[1741652894173,49.72088016,116.49,116.39,287.381]
[1741652894771,4.2975,116.48,116.39,287.381]
[1741652894972,49.72088016,116.47,116.39,4.161]
[1741652895175,0.05571084,116.46,116.43,0.06486058]
[1741652895680,53.89488016,116.47,116.43,0.06486058]
[1741652895978,0.06040083,116.46,116.43,0.01262127]
[1741652896176,49.72088016,116.45,116.37,53.32]
[1741652896475,49.72088016,116.45,116.34,386.24088016]
[1741652896681,49.72088016,116.45,116.36,8.5979]
[1741652896880,49.72088016,116.43,116.36,8.5979]
[1741652897181,58.31398016,116.43,116.34,336.52]
[1741652897373,49.72088016,116.43,116.38,0.05500135]
[1741652897579,0.06379701,116.41,116.38,0.05500135]
[1741652897975,0.06379701,116.41,116.34,386.24088016]
[1741652897976,0.06379701,116.41,116.34,283.22]
[1741652898182,0.06379701,116.41,116.38,0.06268845]
[1741652898377,49.72088016,116.42,116.38,0.06268845]
[1741652898577,49.72088016,116.4,116.38,0.06268845]
[1741652898776,102.96088016,116.4,116.31,21.152]
[1741652899078,106.98238016,116.4,116.31,12.5504]
[1741652899279,57.2615,116.4,116.31,12.5504]
[1741652899679,4.2701,116.41,116.32,49.72088016]
[1741652899981,0.05575849,116.38,116.35,0.02930425]
[1741652900276,0.05575849,116.38,116.35,8.5987]
[1741652900470,4.4486,116.48,116.36,49.72088016]
[1741652900669,4.4486,116.48,116.38,49.72088016]
[1741652900874,194.0,116.49,116.4,49.72088016]
[1741652901074,4.0215,116.5,116.42,49.72088016]
[1741652901274,11.61645343,116.52,116.42,49.72088016]
[1741652901474,0.0540663,116.47,116.45,0.06020116]
[1741652901674,11.61645343,116.52,116.45,0.06020116]
[1741652901880,11.61645343,116.52,116.49,8.5881]
[1741652902080,11.61645343,116.52,116.45,57.6625]
[1741652902375,11.61645343,116.52,116.49,8.5879]
[1741652902579,11.61645343,116.52,116.49,53.22]
[1741652902779,94.05555049,116.54,116.49,53.28512804]
[1741652903172,94.05555049,116.54,116.53,8.5856]
[1741652903473,16.73947096,116.54,116.53,61.6856]
[1741652903669,3.52137096,116.54,116.53,61.6856]
[1741652903877,141.08332574,116.55,116.54,8.5848]
[1741652904089,0.0640844,116.55,116.52,0.05566382]
[1741652904271,49.78496456,116.55,116.52,0.05566382]
[1741652904579,49.78496456,116.55,116.45,4.4225]
[1741652904580,4.2188,116.54,116.45,4.4225]
[1741652905078,53.93968016,116.54,116.47,8.5898]
[1741652905485,49.72088016,116.52,116.47,8.5898]
[1741652905675,107.33968016,116.54,116.49,8.5885]
[1741652905875,0.05756947,116.52,116.49,0.06030151]
[1741652908181,49.72088016,116.59,116.49,0.06030151]
[1741652908581,49.72088016,116.59,116.48,102.88088016]
[1741652908784,58.07038016,116.61,116.5,49.72088016]
[1741652909082,58.30208016,116.59,116.52,8.5856]
[1741652909485,49.78503846,116.57,116.54,0.05479079]
[1741652909681,49.72088016,116.55,116.44,283.36]
[1741652909881,49.72088016,116.53,116.42,49.72088016]
[1741652910076,49.72088016,116.51,116.44,8.592]
[1741652910281,53.26,116.5,116.41,4.1514]
[1741652910483,53.26,116.5,116.42,49.72088016]
[1741652910682,53.26,116.5,116.47,8.5893]
[1741652910984,53.31937934,116.5,116.42,103.06088016]
[1741652911183,53.31937934,116.5,116.44,8.592]
[1741652911488,0.06530993,116.48,116.39,53.24]
[1741652911686,0.06530993,116.48,116.42,8.5929]
[1741652911886,53.26,116.5,116.4,49.72088016]
[1741652912682,0.05595717,116.46,116.44,0.05965566]
[1741652913077,49.72088016,116.45,116.38,162.69370399]
[1741652913286,49.72088016,116.4,116.38,21.41399259]
[1741652913479,49.72088016,116.4,116.31,141.2797114]
[1741652913676,53.44,116.41,116.32,49.72088016]
[1741652913885,53.44,116.41,116.35,8.5984]
[1741652914178,0.06097055,116.39,116.37,0.02775937]
[1741652914779,243.72088016,116.38,116.31,141.2797114]
[1741652915185,49.72088016,116.42,116.32,49.72088016]
[1741652915384,49.72088016,116.42,116.32,53.81528016]
[1741652916290,0.06136292,116.38,116.32,53.81528016]
[1741652916593,0.06136292,116.38,116.32,4.0944]
[1741652916787,0.06136292,116.38,116.32,53.81528016]
[1741652916987,0.06136292,116.38,116.34,49.72088016]
[1741652917193,0.06136292,116.38,116.32,53.81528016]
[1741652917492,0.06136292,116.38,116.32,4.0944]
[1741652918089,0.06136292,116.38,116.31,53.54]
[1741652918288,0.06136292,116.38,116.3,49.72088016]
[1741652918494,0.05701882,116.36,116.29,57.4815]
[1741652918688,49.72088016,116.38,116.27,4.2928]
[1741652918988,0.05663534,116.34,116.27,4.2928]
[1741652919192,49.72088016,116.36,116.27,4.2928]
[1741652919395,0.05547875,116.32,116.28,8.6039]
[1741652919583,0.05547875,116.32,116.18,609.57210774]
[1741652919584,194.0,116.27,116.18,609.57210774]
[1741652919784,49.72088016,116.19,116.18,609.57210774]
[1741652920200,49.72088016,116.21,116.18,609.57210774]
[1741652920492,49.78042707,116.21,116.18,315.23937565]
[1741652920894,49.72088016,116.19,116.18,315.23937565]
[1741652921090,49.78042707,116.21,116.18,315.23937565]
[1741652921288,52.36042707,116.21,116.18,241.37567027]
[1741652921487,49.72088016,116.19,116.16,758.29786364]
[1741652921688,56.08,116.18,116.16,758.29786364]
[1741652922201,56.13682661,116.18,116.16,758.29786364]
[1741652922496,49.72088016,116.17,116.16,593.73819276]
[1741652922696,58.33308016,116.17,116.16,593.73819276]
[1741652922997,49.72088016,116.17,116.16,593.73819276]
[1741652923291,362.16995479,116.17,116.07,56.02]
[1741652923486,312.44907463,116.17,116.08,49.72088016]
[1741652923684,312.44907463,116.17,116.08,333.42088016]
[1741652923883,0.05776516,116.13,116.1,49.72088016]
[1741652924088,57.46,116.14,115.98,191.0]
[1741652924288,664.43872033,116.14,116.03,49.72088016]
[1741652924486,664.43872033,116.14,116.05,49.72088016]
[1741652924691,664.43872033,116.14,116.06,4.4123]
[1741652924891,664.43872033,116.14,116.07,8.6192]
[1741652925096,664.43872033,116.14,116.06,4.4123]
[1741652925497,664.43872033,116.14,116.07,49.72088016]
[1741652925797,757.45086111,116.11,116.08,57.4]
[1741652925996,757.45086111,116.11,116.06,4.4123]
[1741652926391,807.17174127,116.11,116.06,4.4123]
[1741652926591,757.45086111,116.11,116.06,4.4123]
[1741652926794,757.45086111,116.12,116.06,4.4123]
[1741652927691,0.05717053,116.1,116.08,0.05964885]
[1741652928795,757.45086111,116.12,116.08,0.05964885]
[1741652930192,49.72088016,116.15,116.08,0.05964885]
[1741652930391,0.06105054,116.11,116.07,57.6]
[1741652930590,0.06105054,116.11,116.1,0.0557078]
[1741652930990,0.06105054,116.11,116.09,0.0552814]
[1741652933099,107.16088016,116.17,116.09,0.0552814]
[1741652933297,49.72088016,116.15,116.09,0.0552814]
[1741652933486,49.72088016,116.15,116.06,4.4123]
[1741652933691,49.72088016,116.13,116.06,4.4123]
[1741652934092,0.06326081,116.11,116.08,0.06505569]
[1741652936296,0.06326081,116.11,116.08,8.68335569]
[1741652936597,0.06326081,116.11,116.08,0.06505569]
[1741652937896,49.72088016,116.15,116.08,0.06505569]
[1741652938096,107.16088016,116.17,116.08,0.06505569]
[1741652938302,8.6122,116.17,116.12,8.6153]
[1741652938603,49.72088016,116.19,116.11,57.32]
[1741652938997,49.72088016,116.12,115.99,1.72428657]
[1741652939203,57.62,116.11,116.0,49.72088016]
[1741652939393,57.62,116.11,116.01,4.1737]
[1741652939596,49.72088016,116.12,116.02,107.34088016]
[1741652939797,57.62,116.14,116.02,107.34088016]
[1741652939999,8.6168,116.11,116.05,8.6208]
[1741652940198,49.72088016,116.13,116.02,107.34088016]
[1741652940400,0.06460325,116.09,116.07,0.06275338]
[1741652940603,49.72088016,116.17,116.08,341.68]
[1741652940902,49.72088016,116.19,116.08,391.40088016]
[1741652941101,8.6115,116.18,116.12,8.6158]
[1741652941299,57.58,116.2,116.09,4.0556]
[1741652941496,8.6116,116.18,116.09,61.5556]
[1741652941701,49.72088016,116.21,116.1,49.72088016]
[1741652942001,0.06070662,116.16,116.13,0.05739515]
[1741652942400,0.06070662,116.16,116.09,4.0556]
[1741652942599,58.33718016,116.12,116.05,8.6205]
[1741652942905,49.72088016,116.12,116.02,4.2389]
[1741652943104,8.6168,116.11,116.05,8.6206]
[1741652943303,49.72088016,116.14,116.03,49.72088016]
[1741652943504,49.72088016,116.12,116.02,292.7681]
[1741652943705,49.72088016,116.12,115.91,51.5743]
[1741652943706,49.72088016,116.03,115.87,284.14]
[1741652944001,49.72088016,116.03,115.92,4.0663]
[1741652944207,58.34358016,116.03,115.96,8.6276]
[1741652944409,0.05534868,115.98,115.95,0.05862961]
[1741652944597,49.72088016,116.01,115.96,8.6272]
[1741652944797,49.72088016,116.07,115.96,49.72088016]
[1741652944998,49.72088016,116.09,115.98,49.72088016]
[1741652945203,49.72088016,116.09,115.94,284.16]
[1741652945204,57.4,116.08,115.93,284.16]
[1741652945402,49.72088016,116.06,115.95,8.4054]
[1741652945606,49.72088016,116.06,115.96,49.72088016]
[1741652945806,49.72088016,116.06,115.97,57.36]
[1741652946107,0.05920784,116.02,116.0,0.0610825]
[1741652946298,49.72088016,116.08,116.02,8.6232]
[1741652946501,49.72088016,116.08,116.0,0.0610825]
[1741652946502,49.72088016,116.05,115.94,49.72088016]
[1741652946702,49.72088016,116.03,115.95,8.6327]
[1741652946898,49.72088016,116.01,115.95,17.261]
[1741652947207,107.58088016,116.03,115.95,8.6327]
[1741652947508,0.05553856,115.99,115.97,0.05550335]
[1741652947703,49.72088016,115.98,115.9,5.0]
[1741652947907,49.72088016,115.91,115.9,5.0]
[1741652948205,49.72088016,115.91,115.74,191.0]
[1741652948402,49.72088016,115.88,115.77,4.3572]
[1741652948607,0.2244,115.97,115.81,49.72088016]
[1741652948811,49.72088016,115.94,115.82,284.2]
[1741652949008,63.9912,115.97,115.8,63.7721]
[1741652949009,0.05988145,115.9,115.88,0.06370819]
[1741652949308,49.72088016,115.92,115.83,284.2]
[1741652949508,49.72088016,115.9,115.83,284.2]
[1741652949898,49.72088016,115.93,115.83,284.2]
[1741652950113,4.44,115.94,115.86,8.6352]
[1741652950311,0.05759818,115.89,115.87,0.0654642]
[1741652951206,0.05759818,115.89,115.88,8.6337]
[1741652951405,59.72,115.96,115.87,0.0654642]
[1741652951707,49.72088016,115.89,115.77,49.72088016]
[1741652951908,49.72088016,115.87,115.79,1.08763526]
[1741652952209,59.72,115.88,115.79,1.08763526]
[1741652952505,0.062527,115.85,115.82,0.05826025]
[1741652954214,49.72088016,115.93,115.83,284.52]
[1741652954705,49.72088016,115.91,115.83,284.52]
[1741652955101,49.72088016,115.89,115.83,284.52]
[1741652955404,0.06181314,115.88,115.86,0.05647602]
[1741652957617,4.0542,115.96,115.86,0.05647602]
[1741652957811,49.72088016,116.0,115.89,49.72088016]
[1741652958010,59.18,116.02,115.95,8.6279]
[1741652958213,108.90088016,116.02,115.91,49.72088016]
[1741652958407,108.90088016,116.02,115.92,8.4532]
[1741652958817,0.05895077,115.98,115.96,0.05629946]
[1741652959413,52.35983093,115.98,115.9,284.62]
[1741652959610,8.6271,115.97,115.9,293.252]
[1741652959811,49.72088016,115.98,115.9,284.62]
[1741652960212,49.72088016,115.96,115.84,284.6]
[1741652960606,0.06213641,115.91,115.89,0.0574639]
[1741652961010,257.5288,115.97,115.85,49.72088016]
[1741652961210,0.06107439,115.91,115.89,8.68783136]
[1741652961504,113.24968016,115.97,115.87,59.3]
[1741652961810,0.06411024,115.91,115.89,8.69809097]
[1741652962206,59.24,115.97,115.87,109.02088016]
[1741652962411,49.72088016,116.01,115.89,49.77704347]
[1741652962615,4.3816,116.02,115.91,49.72088016]
[1741652962808,4.3816,116.02,115.92,343.64]
[1741652963317,49.94098016,116.03,115.92,343.64]
[1741652963513,8.6253,116.0,115.92,343.64]
[1741652963816,49.94098016,116.03,115.96,0.06207308]
[1741652963817,0.06012095,115.98,115.96,0.06207308]
[1741652964319,0.06054054,115.98,115.96,0.06224325]
[1741652964711,8.627,115.97,115.96,0.06224325]
[1741652967109,0.06054054,115.98,115.96,0.06224325]
[1741652968218,58.68,116.04,115.96,0.06224325]
[1741652968519,58.68,116.04,115.95,49.72088016]
[1741652968724,108.40088016,116.04,115.94,8.629]
[1741652968915,49.72088016,116.02,115.92,343.1]
[1741652969416,0.06185902,115.98,115.96,0.06019652]
[1741652970619,8.68865902,115.98,115.96,0.06019652]
[1741652970820,0.06185902,115.98,115.96,0.06019652]
[1741652973724,0.06185902,115.98,115.92,284.62]
[1741652974823,0.06185902,115.98,115.94,0.05912238]
[1741652974824,8.6286,115.95,115.94,0.05912238]
[1741652975026,107.70088016,115.99,115.94,0.05912238]
[1741652975323,0.05683898,115.96,115.94,0.05912238]
[1741652975525,57.81683898,115.96,115.85,49.72088016]
[1741652975718,57.76,115.96,115.86,4.0822]
[1741652975919,49.72088016,115.97,115.87,49.72088016]
[1741652976117,107.40088016,116.02,115.91,49.72088016]
[1741652976323,49.72088016,116.02,115.92,354.6348]
[1741652976520,49.72088016,116.02,115.94,8.629]
[1741652976727,0.06407941,115.98,115.96,0.05670222]
[1741652977028,8.627,115.97,115.96,0.05670222]
[1741652977625,8.627,115.97,115.96,2.22e-06]
[1741652978324,68.667,115.97,115.96,2.22e-06]
[1741652978527,8.6319,115.91,115.85,107.18088016]
[1741652978729,49.72088016,115.95,115.85,57.46]
[1741652978934,49.72088016,115.93,115.84,284.6]
[1741652979237,8.6339,115.88,115.84,284.6]
[1741652979530,107.12088016,115.93,115.84,284.6]
[1741652979531,8.635,115.87,115.84,284.6]
[1741652979736,0.06068111,115.87,115.85,0.0656022]
[1741652981327,4.2364,115.92,115.85,0.0656022]
[1741652981629,4.2364,115.92,115.83,58.14]
[1741652982029,49.72088016,115.91,115.83,58.14]
[1741652982328,0.05805902,115.88,115.86,0.05955776]
[1741652982827,8.69205902,115.88,115.86,0.05955776]
[1741652983131,0.05805902,115.88,115.86,0.05955776]
[1741652983336,8.6345,115.87,115.86,0.05955776]
[1741652983529,8.6345,115.87,115.86,5.776e-05]
[1741652983739,11.2145,115.87,115.86,5.776e-05]
[1741652984232,8.6345,115.87,115.86,5.776e-05]
[1741652984431,11.2145,115.87,115.86,5.776e-05]
[1741652984932,194.0,115.86,115.65,250.92743487]
[1741652985236,49.72088016,115.78,115.68,49.72088016]
[1741652985423,58.7,115.77,115.65,191.0]
[1741652985624,49.72088016,115.72,115.64,4.2563]
[1741652985929,59.02,115.71,115.64,4.2563]
[1741652986128,59.02,115.71,115.56,334.50088016]
[1741652986129,0.06266189,115.69,115.56,49.72088016]
[1741652986330,0.06266189,115.69,115.57,1.73055291]
[1741652986331,49.72088016,115.68,115.57,1.73055291]
[1741652986639,49.72088016,115.68,115.57,344.58]
[1741652986828,49.72088016,115.7,115.59,49.72088016]
[1741652987136,49.72088016,115.7,115.6,8.5423]
[1741652987336,49.72088016,115.72,115.61,49.72088016]
[1741652987532,0.06310591,115.66,115.64,0.05476757]
[1741652987739,49.72088016,115.73,115.64,0.05476757]
[1741652988235,49.72088016,115.65,115.64,6.757e-05]
[1741652988430,49.72088016,115.65,115.49,123.7827514]
[1741652988431,398.76088016,115.65,115.49,123.7827514]
[1741652988631,49.72088016,115.63,115.5,49.72088016]
[1741652988834,361.54980453,115.62,115.49,90.3234514]
[1741652989033,1.72995415,115.61,115.44,434.58735848]
[1741652989255,296.72995415,115.61,115.44,434.58735848]
[1741652989529,108.10766032,115.45,115.44,8.93e-05]
[1741652989729,99.44176032,115.45,115.42,221.55358566]
[1741652989931,49.72088016,115.45,115.4,273.45427696]
[1741652990131,49.72088016,115.41,115.34,352.3269285]
[1741652990365,265.06,115.44,115.34,352.3269285]
[1741652990574,49.72088016,115.41,115.34,361.0006285]
[1741652990773,29.61518016,115.41,115.35,71.4]
[1741652990952,49.72088016,115.5,115.35,71.4]
[1741652991249,49.72088016,115.5,115.37,0.05708393]
[1741652991454,194.0,115.54,115.38,408.9]
[1741652991772,49.72088016,115.44,115.37,8.65981162]
[1741652991977,49.72088016,115.41,115.34,352.3269285]
[1741652992168,73.84,115.4,115.34,352.25822461]
[1741652992561,0.06161096,115.39,115.31,420.06437133]
[1741652992860,49.72088016,115.38,115.36,4.708e-05]
[1741652993064,49.72088016,115.37,115.36,4.708e-05]
[1741652993267,8.6756,115.32,115.31,363.38501841]
[1741652993565,295.0,115.4,115.26,469.82417133]
[1741652993566,50.22030841,115.33,115.26,469.82417133]
[1741652993768,50.22030841,115.38,115.26,478.48398295]
[1741652995458,50.22030841,115.39,115.3,84.8626]
[1741652995685,378.80488,115.33,115.3,28.58684194]
[1741652996158,24.72015963,115.38,115.32,50.22030841]
[1741652996362,24.72015963,115.38,115.3,8.4026]
[1741652996566,136.7541582,115.33,115.31,77.08]
[1741652996863,171.36523511,115.33,115.31,77.08]
[1741652997056,171.36523511,115.33,115.31,0.06517107]
[1741652997255,171.42546699,115.33,115.26,469.82417133]
[1741652997543,20.29455016,115.32,115.26,469.82417133]
[1741652997745,50.22030841,115.31,115.26,469.82417133]
[1741652997947,20.29455016,115.32,115.26,469.82417133]
[1741652998137,136.7541582,115.33,115.28,50.22030841]
[1741652998440,284.90449626,115.36,115.31,8.48418902]
[1741652998646,284.90449626,115.36,115.26,520.04447974]
[1741652998647,100.44061682,115.32,115.26,469.82417133]
[1741652998845,50.22030841,115.32,115.26,469.82417133]
[1741652999040,8.4923,115.35,115.26,469.82417133]
[1741652999240,50.22030841,115.32,115.26,469.82417133]
[1741652999446,8.4923,115.35,115.26,469.82417133]
[1741652999447,20.72600849,115.35,115.26,469.82417133]
[1741652999645,50.22030841,115.33,115.26,469.82417133]
[1741652999841,0.06135743,115.32,115.29,0.05511281]
[1741653000038,50.22030841,115.3,115.26,373.35137133]
[1741653000242,50.22030841,115.32,115.26,373.35137133]
[1741653000538,12.23370849,115.31,115.26,373.35137133]
[1741653000738,50.22030841,115.3,115.26,343.62337133]
[1741653000945,12.23370849,115.31,115.26,343.62337133]
[1741653001150,0.05766349,115.29,115.27,0.06086683]
[1741653001447,0.05766349,115.29,115.27,50.22030841]
[1741653001448,48.4487478,115.29,115.27,50.22030841]
[1741653001641,48.4487478,115.29,115.26,343.62337133]
[1741653002253,284.90449626,115.32,115.27,50.22030841]
[1741653002445,284.90449626,115.32,115.29,50.22030841]
[1741653002648,0.06551032,115.31,115.28,0.05695667]
[1741653002847,284.90449626,115.37,115.29,50.22030841]
[1741653003147,284.90449626,115.37,115.29,4.0404]
[1741653003352,284.90449626,115.37,115.31,50.22030841]
[1741653003548,284.90449626,115.37,115.32,43.75533648]
[1741653003853,44.72913709,115.36,115.32,43.75533648]
[1741653004251,44.78563827,115.36,115.35,50.22030841]
[1741653004755,44.78563827,115.36,115.33,0.06363483]
[1741653005253,100.44061682,115.34,115.26,330.44354267]
[1741653005446,8.6794,115.27,115.26,330.44354267]
[1741653005647,50.22030841,115.28,115.2,587.28021416]
[1741653005850,50.22030841,115.25,115.2,587.28021416]
[1741653006250,50.22030841,115.22,115.2,587.28021416]
[1741653006554,58.90350841,115.22,115.21,4.651e-05]
[1741653006746,58.90350841,115.22,115.2,587.28021416]
[1741653006747,52.82030841,115.22,115.2,587.28021416]
[1741653007147,8.6839,115.21,115.2,587.28021416]
[1741653007349,8.6839,115.21,115.15,587.28021416]
[1741653007350,100.44061682,115.21,115.07,666.900757]
[1741653007651,50.22030841,115.18,115.07,653.453357]
[1741653007853,50.22030841,115.2,115.09,50.22030841]
[1741653008050,0.06021653,115.14,115.07,653.453357]
[1741653008251,0.06021653,115.14,115.13,0.06388267]
[1741653008450,151.22030841,115.2,115.13,0.06388267]
[1741653008652,0.05580634,115.15,115.14,286.14]
[1741653008852,224.39719982,115.16,115.14,286.14]
[1741653009052,224.46024208,115.16,115.14,135.47907477]
[1741653009249,224.46024208,115.16,115.13,286.1974793]
[1741653009456,227.06024208,115.16,115.13,0.0574793]
[1741653009655,44.72913709,115.15,115.13,0.0574793]
[1741653009856,44.72913709,115.15,115.13,50.27778771]
[1741653010058,44.72913709,115.15,115.13,50.25778771]
[1741653010255,134.48839417,115.17,115.13,50.25778771]
[1741653010557,134.54719471,115.2,115.15,50.22030841]
[1741653010754,134.54719471,115.2,115.13,0.0374793]
[1741653010952,134.54719471,115.2,115.13,50.22030841]
[1741653011461,0.06360634,115.18,115.15,50.27747965]
[1741653011761,45.804968,115.19,115.17,50.22030841]
[1741653012057,284.90449626,115.25,115.18,54.66130841]
[1741653012366,284.90449626,115.25,115.15,50.22030841]
[1741653012558,8.6808,115.24,115.15,50.22030841]
[1741653012855,0.05855708,115.21,115.2,50.22030841]
[1741653013053,284.90449626,115.25,115.2,386.72061682]
[1741653013259,48.4567028,115.24,115.23,50.22030841]
[1741653013452,284.90449626,115.28,115.23,50.22030841]
[1741653013761,284.90449626,115.28,115.26,50.22030841]
[1741653013951,278.18889626,115.28,115.26,50.22030841]
[1741653014154,96.0847551,115.31,115.26,103.1035556]
[1741653014361,50.22030841,115.43,115.3,50.22030841]
[1741653014561,50.22030841,115.45,115.33,50.22030841]
[1741653014753,145.24346083,115.41,115.33,50.22030841]
[1741653014959,145.24346083,115.41,115.37,50.22030841]
[1741653015560,0.06355877,115.4,115.38,0.05481804]
[1741653016354,2.66355877,115.4,115.38,0.05481804]
[1741653016559,50.22030841,115.31,115.19,50.22030841]
[1741653016865,50.22030841,115.25,115.07,653.453357]
[1741653017262,50.22030841,115.23,115.08,50.22030841]
[1741653017464,50.22030841,115.26,115.12,50.22030841]
[1741653017661,0.05877476,115.17,115.15,50.22030841]
[1741653017860,50.22030841,115.28,115.15,50.22030841]
[1741653018063,50.22030841,115.28,115.17,50.22030841]
[1741653018469,96.94668216,115.25,115.17,50.22030841]
[1741653018664,96.94668216,115.25,115.18,50.22030841]
[1741653018968,0.06069084,115.23,115.2,0.0557562]
[1741653019161,8.74229084,115.23,115.2,0.0557562]
[1741653019362,50.22030841,115.23,115.08,50.22030841]
[1741653019563,50.2867449,115.23,115.11,50.22030841]
[1741653019763,50.22030841,115.23,115.11,50.22030841]
[1741653020266,96.94668216,115.22,115.14,50.22030841]
[1741653020458,581.24,115.21,115.07,653.453357]
[1741653020768,0.06271562,115.16,115.13,0.05468746]
[1741653021263,0.06271562,115.16,115.13,0.06144306]
[1741653022063,0.06271562,115.16,115.13,50.28175147]
[1741653023360,0.06271562,115.16,115.15,50.22030841]
[1741653023671,759.09149298,115.16,115.15,50.22030841]
[1741653023866,759.09149298,115.16,115.13,50.28175147]
[1741653024067,759.09149298,115.16,115.13,0.06144306]
[1741653024870,759.09149298,115.16,115.13,50.28175147]
[1741653025280,367.14965183,115.16,115.15,50.22030841]
[1741653025493,214.79290395,115.16,115.15,50.22030841]
[1741653025700,472.88910362,115.14,114.98,286.42]
[1741653025996,472.88910362,115.14,115.08,4.2926]
[1741653026294,472.88910362,115.14,115.09,50.22030841]
[1741653026692,472.88910362,115.14,115.1,4.0605]
[1741653026889,0.05819768,115.13,115.1,4.12141013]
[1741653027088,93.68541581,115.13,115.1,4.12141013]
[1741653027286,93.62397275,115.13,115.1,4.12141013]
[1741653027490,93.62397275,115.13,115.1,0.06091013]
[1741653028294,8.69,115.12,115.1,0.06091013]
[1741653028892,0.06483954,115.13,115.1,0.06091013]
[1741653029088,0.06483954,115.13,115.07,653.453357]
[1741653029894,8.6899,115.12,115.07,653.453357]
[1741653030101,0.06483954,115.13,115.07,653.453357]
[1741653030394,50.22030841,115.14,115.08,0.05689444]
[1741653030395,0.0593413,115.11,115.08,0.05689444]
[1741653030695,2.6593413,115.11,115.08,0.05689444]
[1741653030899,0.0593413,115.11,115.07,653.453357]
[1741653031093,7.1437239,115.1,115.07,653.453357]
[1741653031794,7.1437239,115.09,115.07,653.453357]
[1741653031996,7.1437239,115.09,115.07,653.51131866]
[1741653032496,0.0593413,115.11,115.07,653.51131866]
[1741653032699,0.0593413,115.11,115.07,657.86831866]
[1741653033898,11.60404328,115.1,115.07,657.86831866]
[1741653034090,11.60404328,115.1,115.07,653.51131866]
[1741653034494,11.60404328,115.09,115.07,653.51131866]
[1741653035395,11.60404328,115.08,115.07,653.51131866]
[1741653035598,4.88284328,115.08,115.07,653.51131866]
[1741653035902,4.88284328,115.08,115.07,657.68011866]
[1741653036504,0.06071825,115.09,115.07,657.68011866]
[1741653036802,0.06071825,115.09,115.07,707.90042707]
[1741653037005,35.52051712,115.15,115.07,710.50042707]
[1741653037306,35.52051712,115.15,115.08,286.6]
[1741653037502,35.52051712,115.15,115.11,50.22030841]
[1741653037689,141.90960183,115.19,115.09,50.22030841]
[1741653037897,9.59897752,115.2,115.08,286.6]
[1741653038099,0.06567072,115.15,115.12,0.05966436]
[1741653038495,50.22030841,115.19,115.12,0.05476845]
[1741653038697,50.22030841,115.19,115.08,336.82030841]
[1741653038996,0.05762496,115.15,115.12,0.05550506]
[1741653039201,0.05762496,115.15,115.12,8.6893]
[1741653039389,50.22030841,115.13,115.12,0.06288592]
[1741653039891,54.56480453,115.13,115.12,0.06288592]
[1741653041180,4.34449612,115.13,115.07,653.453357]
[1741653041479,4.34449612,115.13,115.04,50.22030841]
[1741653041672,9.59897752,115.16,115.04,50.22030841]
[1741653041673,9.59897752,115.16,115.08,50.22030841]
[1741653041874,9.59897752,115.16,115.11,50.22030841]
[1741653042178,7.752e-05,115.16,115.13,50.22030841]
[1741653042380,145.40362058,115.21,115.15,50.22030841]
[1741653042623,35.45426396,115.26,115.14,54.40980841]
[1741653042624,35.45426396,115.24,115.14,54.40980841]
[1741653042774,141.81705587,115.28,115.22,50.22030841]
[1741653043078,53.8474982,115.29,115.28,8.6778]
[1741653043280,204.77610125,115.3,115.24,0.05679413]
[1741653043583,159.28010125,115.3,115.29,8.677]
[1741653043769,278.54994279,115.32,115.29,2.6]
[1741653043973,278.54994279,115.32,115.3,286.56]
[1741653044589,288.94994279,115.32,115.22,50.22030841]
[1741653044777,50.22030841,115.29,115.16,174.22030841]
[1741653044980,50.22030841,115.27,115.16,174.22030841]
[1741653045285,50.22030841,115.25,115.16,124.0]
[1741653045584,50.22030841,115.29,115.17,50.22030841]
[1741653045787,10.4,115.3,115.19,50.22030841]